fUST/lending_fUST_20250613
["ID","MTS","AMOUNT","RATE_DAILY","PERIOD"]
[365524064,1749745840236,-460.0,0.00022191,4]
[365524066,1749745840245,-637.3,0.00022191,4]
[365524068,1749745840255,-460.0,0.00022191,4]
[365524070,1749745840264,-460.0,0.00022191,4]
[365524072,1749745840273,-460.0,0.00022191,4]
[365524074,1749745840283,-610.77,0.00022191,4]
[365524076,1749745840292,-726.62,0.00022191,4]
[365524078,1749745840301,-846.41,0.00022191,4]
[365524080,1749745840310,-460.0,0.00022191,4]
[365524082,1749745840319,-522.54,0.00022191,4]
[365524084,1749745840329,-185.09474156,0.000222,69]
[365524086,1749745840338,-1500.0,0.00022266,2]
[365524088,1749745840347,-1554.64045528,0.00022279,6]
[365524090,1749745840356,-500.0,0.00022356,2]
[365524091,1749745840365,-1554.64045528,0.00022417,7]
[365524093,1749745840375,-714.84,0.00022455,3]
[365524096,1749745840385,-460.0,0.00022465,2]
[365524098,1749745840395,-606.89,0.00022465,4]
[365524100,1749745840404,-460.0,0.00022465,4]
[365524102,1749745840414,-527.23,0.00022465,4]
[365524103,1749745840423,-460.0,0.00022465,4]
[365524105,1749745840433,-637.3,0.00022465,4]
[365524107,1749745840442,-460.0,0.00022465,4]
[365524109,1749745840452,-460.0,0.00022465,4]
[365524111,1749745840461,-460.0,0.00022465,4]
[365524113,1749745840470,-610.77,0.00022465,4]
[365524115,1749745840479,-726.62,0.00022465,4]
[365524117,1749745840489,-846.41,0.00022465,4]
[365524119,1749745840498,-460.0,0.00022465,4]
[365524121,1749745840507,-522.54,0.00022465,4]
[365524122,1749745840517,-1554.64045528,0.00022555,7]
[365524123,1749745840526,-415.38838892,0.00022661,2]
[365524124,1749745840535,-1554.64045528,0.00022693,7]
[365524125,1749745840545,-500.0,0.000227,2]
[365524126,1749745840555,-501.91881571,0.000227,2]
[365524127,1749745840565,-500.0,0.000227,2]
[365524128,1749745840574,-500.0,0.000227,2]
[365524129,1749745840584,-500.0,0.000227,2]
[365524130,1749745840594,-460.0,0.00022739,2]
[365524131,1749745840603,-606.89,0.00022739,4]
[365524132,1749745840612,-460.0,0.00022739,4]
[365524133,1749745840622,-527.23,0.00022739,4]
[365524134,1749745840631,-345.28203458,0.00022739,4]
[365524135,1749745840640,-637.3,0.00022739,4]
[365524136,1749745840650,-460.0,0.00022739,4]
[365524137,1749745840660,-460.0,0.00022739,4]
[365524138,1749745840670,-460.0,0.00022739,4]
[365524139,1749745840681,-610.77,0.00022739,4]
[365524140,1749745840690,-726.62,0.00022739,4]
[365524141,1749745840699,-846.41,0.00022739,4]
[365524142,1749745840710,-460.0,0.00022739,4]
[365524143,1749745840719,-522.54,0.00022739,4]
[365524144,1749745840730,-207.4,0.00022768,2]
[365524145,1749745840739,-5000.0,0.00022768,2]
[365524146,1749745840748,-151.0,0.00022768,7]
[365524147,1749745840758,-236.0,0.00022768,7]
[365524148,1749745840768,-829.29,0.000228,7]
[365524149,1749745840777,-169.35438922,0.00022814,2]
[365524150,1749745840787,-653.453733,0.0002283,7]
[365524151,1749745840797,-653.453733,0.0002283,7]
[365524152,1749745840806,-1359.11236,0.0002283,7]
[365524153,1749745840816,-1359.11236,0.0002283,7]
[365524154,1749745840827,-1554.64045528,0.00022831,8]
[365524155,1749745840836,-151.0,0.00022935,7]
[365524157,1749745840847,-154.234513,0.00022935,7]
[365524158,1749745840857,-154.234513,0.00022935,7]
[365524159,1749745840868,-151.0,0.00022935,7]
[365524160,1749745840877,-11862.37599647,0.00022935,7]
[365524161,1749745840888,-1554.64045528,0.00022969,8]
[365524162,1749745840897,-1455.4,0.00023,2]
[365524163,1749745840906,-156.0,0.00023,2]
[365524164,1749745840916,-4122.08742777,0.00023,20]
[365524165,1749745840926,-207.298575,0.00023011,7]
[365524166,1749745840939,-207.298575,0.00023011,7]
[365524167,1749745840949,-460.0,0.00023013,2]
[365524168,1749745840959,-606.89,0.00023013,4]
[365524169,1749745840968,-460.0,0.00023013,4]
[365524170,1749745840977,-527.23,0.00023013,4]
[365524171,1749745840987,-637.3,0.00023013,4]
[365524172,1749745840996,-460.0,0.00023013,4]
[365524173,1749745841005,-460.0,0.00023013,4]
[365524174,1749745841015,-460.0,0.00023013,4]
[365524175,1749745841024,-610.77,0.00023013,4]
[365524176,1749745841034,-726.62,0.00023013,4]
[365524177,1749745841042,-846.41,0.00023013,4]
[365524178,1749745841052,-460.0,0.00023013,4]
[365524179,1749745841061,-522.54,0.00023013,4]
[365524180,1749745841070,-587.0,0.00023061,2]
[365524181,1749745841079,-587.0,0.00023062,2]
[365524182,1749745841088,-653.0,0.00023068,2]
[365524183,1749745841097,-2160.0,0.00023068,2]
[365524184,1749745841107,-405.0,0.00023068,2]
[365524185,1749745841115,-963.0,0.00023068,2]
[365524186,1749745841124,-1554.64045528,0.00023107,8]
[365524187,1749745841133,-158.66118947,0.00023151,2]
[365524188,1749745841142,-1992.03633966,0.00023216,2]
[365524189,1749745841154,-1554.64045528,0.00023245,8]
[365524190,1749745841166,-1000.0,0.00023248,2]
[365524191,1749745841175,-1000.0,0.00023248,2]
[365524192,1749745841186,-1000.0,0.00023248,2]
[365524193,1749745841196,-975.76068113,0.00023248,2]
[365524194,1749745841205,-460.0,0.00023286,4]
[365524195,1749745841215,-460.0,0.00023287,2]
[365524196,1749745841225,-606.89,0.00023287,4]
[365524197,1749745841237,-460.0,0.00023287,4]
[365524198,1749745841246,-527.23,0.00023287,4]
[365524199,1749745841256,-637.3,0.00023287,4]
[365524200,1749745841267,-460.0,0.00023287,4]
[365524201,1749745841276,-460.0,0.00023287,4]
[365524202,1749745841286,-460.0,0.00023287,4]
[365524203,1749745841295,-610.77,0.00023287,4]
[365524204,1749745841305,-726.62,0.00023287,4]
[365524205,1749745841315,-846.41,0.00023287,4]
[365524206,1749745841324,-535.0,0.00023287,4]
[365524207,1749745841334,-522.54,0.00023287,4]
[365524208,1749745841343,-5000.0,0.00023316,2]
[365524209,1749745841354,-443.72833664,0.00023356,2]
[365524210,1749745841363,-160.0,0.00023369,2]
[365524211,1749745841372,-1554.64045528,0.00023383,9]
[365524212,1749745841382,-2068.687024,0.0002352,3]
[365524213,1749745841392,-1554.64045528,0.00023521,9]
[365524214,1749745841401,-415.38838892,0.00023526,2]
[365524215,1749745841410,-460.0,0.0002356,4]
[365524216,1749745841420,-460.0,0.00023561,2]
[365524217,1749745841431,-606.89,0.00023561,4]
[365524218,1749745841440,-460.0,0.00023561,4]
[365524219,1749745841449,-527.23,0.00023561,4]
[365524220,1749745841459,-637.3,0.00023561,4]
[365524221,1749745841469,-460.0,0.00023561,4]
[365524222,1749745841479,-460.0,0.00023561,4]
[365524223,1749745841489,-460.0,0.00023561,4]
[365524224,1749745841498,-610.77,0.00023561,4]
[365524225,1749745841508,-726.62,0.00023561,4]
[365524226,1749745841517,-846.41,0.00023561,4]
[365524227,1749745841527,-522.54,0.00023561,4]
[365524228,1749745841536,-674613.65113137,0.00023623,5]
[365524229,1749745841546,-200.0,0.00023642,2]
[365524230,1749745841556,-1554.64045528,0.00023659,9]
[365524231,1749745841566,-151.0,0.00023663,7]
[365524232,1749745841575,-500.0,0.00023673,2]
[365524233,1749745841585,-500.0,0.00023673,2]
[365524234,1749745841594,-500.0,0.00023673,2]
[365524235,1749745841603,-500.0,0.00023673,2]
[365524236,1749745841613,-503.86131124,0.00023673,2]
[365524237,1749745841623,-500.0,0.00023673,2]
[365524238,1749745841634,-500.0,0.00023673,2]
[365524239,1749745841644,-500.0,0.00023673,2]
[365524240,1749745841654,-500.0,0.00023673,2]
[365524241,1749745841665,-500.0,0.00023673,2]
[365524242,1749745841675,-500.0,0.00023673,2]
[365524243,1749745841688,-500.0,0.00023673,2]
[365524244,1749745841697,-600.0,0.00023673,2]
[365524245,1749745841707,-500.0,0.00023673,2]
[365524246,1749745841718,-500.0,0.00023673,2]
[365524247,1749745841727,-502.17117778,0.00023673,2]
[365524248,1749745841737,-500.0,0.00023673,2]
[365524249,1749745841747,-500.0,0.00023673,2]
[365524250,1749745841758,-500.0,0.00023673,2]
[365524251,1749745841768,-603.34954405,0.00023673,2]
[365524252,1749745841778,-506.21001811,0.00023673,2]
[365524253,1749745841787,-424.26423502,0.00023715,2]
[365524254,1749745841797,-160.0,0.00023717,2]
[365524255,1749745841807,-844.79171733,0.00023731,2]
[365524256,1749745841816,-229.7508257,0.00023731,2]
[365524257,1749745841825,-160.0,0.00023731,2]
[365524258,1749745841834,-213.20212768,0.00023731,2]
[365524259,1749745841844,-200.0,0.00023757,2]
[365524260,1749745841853,-151.0,0.00023766,7]
[365524261,1749745841863,-800.0,0.00023772,2]
[365524262,1749745841873,-1082.09881525,0.00023796,2]
[365524263,1749745841882,-1084.2513234,0.00023796,2]
[365524264,1749745841891,-1500.0,0.00023796,2]
[365524265,1749745841901,-800.0,0.00023796,2]
[365524266,1749745841911,-1554.64045528,0.00023797,9]
[365524267,1749745841920,-151.0,0.000238,7]
[365524269,1749745841930,-154.234513,0.000238,7]
[365524270,1749745841941,-154.234513,0.000238,7]
[365524271,1749745841950,-979.0,0.000238,2]
[365524272,1749745841960,-653.453733,0.00023807,7]
[365524273,1749745841969,-653.453733,0.00023807,7]
[365524274,1749745841979,-1359.11236,0.00023807,7]
[365524275,1749745841988,-1359.11236,0.00023807,7]
[365524276,1749745841998,-800.0,0.00023814,2]
[365524277,1749745842007,-443.72833664,0.00023817,2]
[365524278,1749745842016,-151.0,0.00023832,7]
[365524279,1749745842026,-460.0,0.00023834,4]
[365524280,1749745842035,-460.0,0.00023835,2]
[365524281,1749745842044,-606.89,0.00023835,4]
[365524282,1749745842053,-460.0,0.00023835,4]
[365524283,1749745842063,-527.23,0.00023835,4]
[365524284,1749745842072,-637.3,0.00023835,4]
[365524285,1749745842081,-460.0,0.00023835,4]
[365524286,1749745842090,-301.1,0.00023835,4]
[365524287,1749745842100,-328.83,0.00023835,4]
[365524288,1749745842110,-610.77,0.00023835,4]
[365524289,1749745842119,-726.62,0.00023835,4]
[365524290,1749745842129,-846.41,0.00023835,4]
[365524291,1749745842138,-522.54,0.00023835,4]
[365524292,1749745842148,-168.0,0.00023838,2]
[365524293,1749745842159,-2211.63,0.00023854,2]
[365524294,1749745842169,-5000.0,0.00023864,2]
[365524295,1749745842179,-207.298575,0.00023864,7]
[365524296,1749745842190,-207.298575,0.00023864,7]
[365524297,1749745842200,-829.29,0.000239,7]
[365524298,1749745842209,-273.4,0.000239,2]
[365524299,1749745842219,-7195.66298306,0.000239,2]
[365524300,1749745842228,-151.0,0.0002391,7]
[365524301,1749745842240,-653.453733,0.0002391,7]
[365524302,1749745842250,-653.453733,0.0002391,7]
[365524303,1749745842260,-1359.11236,0.0002391,7]
[365524304,1749745842269,-1359.11236,0.0002391,7]
[365524305,1749745842278,-200.0,0.0002392,9]
[365524306,1749745842288,-800.0,0.00023927,2]
[365524307,1749745842298,-1554.64045528,0.00023934,10]
[365524308,1749745842308,-270.62445194,0.0002396,2]
[365524309,1749745842318,-500.0,0.0002396,2]
[365524310,1749745842327,-500.0,0.0002396,2]
[365524311,1749745842337,-500.0,0.0002396,2]
[365524312,1749745842346,-536.5696683,0.00023962,2]
[365524316,1749745842459,-500.0,0.00023973,2]
[365524318,1749745842469,-502.28458443,0.00023973,2]
[365524320,1749745842479,-504.61170123,0.00023973,2]
[365524322,1749745842488,-500.0,0.00023973,2]
[365524324,1749745842496,-500.0,0.00023973,2]
[365524325,1749745842504,-500.0,0.00023973,2]
[365524327,1749745842512,-500.0,0.00023973,2]
[365524330,1749745842521,-500.0,0.00023973,2]
[365524333,1749745842531,-500.0,0.00023973,2]
[365524335,1749745842540,-500.0,0.00023973,2]
[365524337,1749745842548,-500.0,0.00023973,2]
[365524338,1749745842557,-157.19649346,0.00023973,2]
[365524339,1749745842566,-151.0,0.00023985,7]
[365524340,1749745842575,-154.234513,0.00023985,7]
[365524341,1749745842584,-154.234513,0.00023985,7]
[365524342,1749745842593,-207.298575,0.00023999,7]
[365524343,1749745842601,-207.298575,0.00023999,7]
[365524344,1749745842609,-151.0,0.00023999,7]
[365524345,1749745842616,-154.234513,0.00023999,7]
[365524346,1749745842625,-154.234513,0.00023999,7]
[365524347,1749745842634,-653.453733,0.00023999,7]
[365524348,1749745842642,-653.453733,0.00023999,7]
[365524349,1749745842650,-1359.11236,0.00023999,7]
[365524350,1749745842658,-1359.11236,0.00023999,7]
[365524351,1749745842666,-3208.57082746,0.00024,2]
[365524352,1749745842673,-6852.30680876,0.00024,2]
[365524353,1749745842683,-615306.03515499,0.00024,3]
[365524357,1749745845869,-460.0,0.00021095,4]
[365524358,1749745845879,-269.18,0.00021369,4]
[365524359,1749745845889,-178.71,0.00021991,3]
[365524360,1749745845898,-500.0,0.00022,2]
[365524361,1749745845907,-357.42,0.00023361,3]
[365524362,1749745845917,-229.7508257,0.00023715,2]
[365524363,1749745845926,-160.0,0.00023715,2]
[365524364,1749745845936,-646.068475,0.00024,3]
[365524365,1749745845976,-53964.460095,0.00024,3]
[365524370,1749745951797,200.0,0.00023868,120]
[365524373,1749746011291,200.0,0.0002422,120]
[365524376,1749746071320,200.0,0.00023409,120]
[365524379,1749746251136,200.0,0.00023022,120]
[365524380,1749746371838,200.0,0.00023281,120]
[365524382,1749746431458,200.0,0.00022938,120]
[365524388,1749746559314,161.13609,0.00013699,2]
[365524681,1749747041991,-160.0,0.00020076,2]
[365524682,1749747042001,-165.842008,0.00020115,2]
[365524683,1749747042010,-500.0,0.00020164,2]
[365524684,1749747042019,-1038.8,0.00020539,2]
[365524685,1749747042029,-500.0,0.00020547,2]
[365524686,1749747042038,-180.509078,0.00020793,2]
[365524687,1749747042047,-764.62858812,0.000209,4]
[365524688,1749747042057,-300.0,0.0002095,2]
[365524689,1749747042066,-161.13609,0.00020951,2]
[365524690,1749747042076,-8147.72201998,0.00020951,2]
[365524691,1749747042086,-1000.0,0.00021,21]
[365524692,1749747042095,-764.62858804,0.00021038,4]
[365524693,1749747042104,-460.0,0.00021095,2]
[365524694,1749747042114,-764.62858804,0.00021176,4]
[365524695,1749747042123,-764.62858804,0.00021314,5]
[365524696,1749747042131,-460.0,0.00021369,2]
[365524697,1749747042140,-460.0,0.00021445,4]
[365524698,1749747042149,-460.0,0.00021445,4]
[365524699,1749747042159,-460.0,0.00021445,4]
[365524700,1749747042168,-460.0,0.00021445,4]
[365524701,1749747042177,-160.0,0.00021446,2]
[365524702,1749747042187,-764.62858804,0.00021452,5]
[365524703,1749747042197,-460.0,0.00021454,4]
[365524704,1749747042206,-460.0,0.00021454,4]
[365524705,1749747042215,-460.0,0.00021454,4]
[365524706,1749747042224,-460.0,0.00021454,4]
[365524707,1749747042233,-460.0,0.00021454,4]
[365524708,1749747042242,-460.0,0.00021454,4]
[365524709,1749747042251,-460.0,0.00021455,4]
[365524710,1749747042260,-1169.14,0.00021489,2]
[365524711,1749747042269,-180.118,0.00021589,2]
[365524712,1749747042278,-440.0,0.00021589,4]
[365524713,1749747042287,-764.62858804,0.0002159,5]
[365524714,1749747042296,-460.0,0.00021642,4]
[365524715,1749747042305,-440.0,0.00021642,4]
[365524716,1749747042315,-372.110366,0.00021642,2]
[365524717,1749747042324,-460.0,0.00021642,4]
[365524718,1749747042334,-460.0,0.00021642,4]
[365524719,1749747042343,-543.89,0.00021642,4]
[365524720,1749747042352,-460.0,0.00021642,4]
[365524721,1749747042361,-460.0,0.00021643,2]
[365524722,1749747042370,-207.64443629,0.00021644,3]
[365524723,1749747042380,-460.0,0.00021719,4]
[365524724,1749747042389,-460.0,0.00021719,4]
[365524725,1749747042399,-460.0,0.00021719,4]
[365524726,1749747042412,-460.0,0.00021719,4]
[365524727,1749747042421,-764.62858804,0.00021728,5]
[365524728,1749747042431,-460.0,0.00021728,4]
[365524729,1749747042441,-460.0,0.00021728,4]
[365524730,1749747042450,-203.67,0.00021728,4]
[365524731,1749747042459,-460.0,0.00021728,4]
[365524732,1749747042469,-460.0,0.00021728,4]
[365524733,1749747042478,-420.0,0.00021729,4]
[365524734,1749747042488,-764.62858804,0.00021866,6]
[365524735,1749747042498,-460.0,0.00021916,4]
[365524736,1749747042509,-460.0,0.00021916,4]
[365524737,1749747042520,-460.0,0.00021916,4]
[365524738,1749747042532,-543.89,0.00021916,4]
[365524739,1749747042553,-460.0,0.00021916,4]
[365524740,1749747042565,-460.0,0.00021917,2]
[365524741,1749747042576,-460.0,0.00021993,4]
[365524742,1749747042588,-460.0,0.00021993,4]
[365524743,1749747042599,-460.0,0.00021993,4]
[365524744,1749747042610,-460.0,0.00021993,4]
[365524745,1749747042622,-1000.0,0.00022,22]
[365524746,1749747042634,-460.0,0.00022002,4]
[365524747,1749747042645,-460.0,0.00022002,4]
[365524748,1749747042656,-288.83,0.00022002,4]
[365524749,1749747042668,-460.0,0.00022002,4]
[365524750,1749747042680,-764.62858804,0.00022003,6]
[365524752,1749747042697,-160.0,0.00022063,2]
[365524753,1749747042708,-835.15920933,0.00022063,2]
[365524754,1749747042719,-424.26423502,0.00022063,2]
[365524755,1749747042729,-229.7508257,0.00022063,2]
[365524756,1749747042741,-160.0,0.00022063,2]
[365524757,1749747042751,-844.79171733,0.00022065,2]
[365524758,1749747042761,-213.20212768,0.00022065,2]
[365524760,1749747042772,-160.0,0.00022065,2]
[365524761,1749747042783,-500.0,0.00022089,2]
[365524762,1749747042794,-676.63120204,0.0002212,2]
[365524763,1749747042804,-764.62858804,0.00022141,6]
[365524764,1749747042814,-460.0,0.0002219,4]
[365524765,1749747042825,-460.0,0.0002219,4]
[365524766,1749747042835,-261.1,0.0002219,4]
[365524767,1749747042844,-543.89,0.0002219,4]
[365524768,1749747042853,-460.0,0.0002219,4]
[365524769,1749747042863,-460.0,0.00022191,2]
[365524770,1749747042873,-500.0,0.00022245,2]
[365524771,1749747042883,-460.0,0.00022267,4]
[365524772,1749747042893,-460.0,0.00022267,4]
[365524773,1749747042903,-460.0,0.00022267,4]
[365524774,1749747042913,-460.0,0.00022267,4]
[365524775,1749747042922,-460.0,0.00022276,4]
[365524777,1749747042932,-460.0,0.00022276,4]
[365524779,1749747042946,-460.0,0.00022276,4]
[365524780,1749747042955,-764.62858804,0.00022279,6]
[365524781,1749747042965,-187.0,0.00022331,2]
[365524782,1749747042975,-500.0,0.00022356,2]
[365524783,1749747042985,-187.0,0.00022415,2]
[365524784,1749747042995,-764.62858804,0.00022417,7]
[365524785,1749747043004,-460.0,0.00022464,4]
[365524786,1749747043013,-460.0,0.00022464,4]
[365524787,1749747043023,-543.89,0.00022464,4]
[365524788,1749747043034,-460.0,0.00022464,4]
[365524789,1749747043044,-460.0,0.00022465,2]
[365524790,1749747043054,-460.0,0.00022541,4]
[365524791,1749747043064,-460.0,0.00022541,4]
[365524792,1749747043074,-460.0,0.00022541,4]
[365524793,1749747043083,-460.0,0.00022541,4]
[365524794,1749747043093,-460.0,0.0002255,4]
[365524795,1749747043103,-460.0,0.0002255,4]
[365524796,1749747043113,-460.0,0.0002255,4]
[365524797,1749747043122,-764.62858804,0.00022555,7]
[365524798,1749747043131,-764.62858804,0.00022693,7]
[365524799,1749747043140,-460.0,0.00022738,4]
[365524800,1749747043150,-460.0,0.00022738,4]
[365524801,1749747043159,-543.89,0.00022738,4]
[365524802,1749747043169,-460.0,0.00022738,4]
[365524803,1749747043179,-460.0,0.00022739,2]
[365524804,1749747043191,-500.0,0.00022767,2]
[365524805,1749747043200,-500.0,0.00022767,2]
[365524806,1749747043210,-500.0,0.00022767,2]
[365524807,1749747043219,-500.0,0.00022767,2]
[365524808,1749747043229,-377.70194989,0.00022767,2]
[365524809,1749747043238,-500.0,0.00022767,2]
[365524810,1749747043248,-177.32244379,0.00022767,2]
[365524811,1749747043258,-207.4,0.00022768,2]
[365524812,1749747043267,-5000.0,0.00022768,2]
[365524813,1749747043276,-420.0,0.0002279,2]
[365524814,1749747043286,-1000.0,0.00022793,2]
[365524815,1749747043295,-460.0,0.00022815,4]
[365524816,1749747043305,-460.0,0.00022815,4]
[365524817,1749747043314,-460.0,0.00022815,4]
[365524818,1749747043324,-460.0,0.00022815,4]
[365524819,1749747043334,-160.0,0.00022816,2]
[365524820,1749747043344,-460.0,0.00022824,4]
[365524821,1749747043353,-460.0,0.00022824,4]
[365524822,1749747043363,-460.0,0.00022824,4]
[365524823,1749747043373,-764.62858804,0.00022831,8]
[365524824,1749747043383,-443.72833664,0.00022863,2]
[365524825,1749747043392,-764.62858804,0.00022969,8]
[365524826,1749747043402,-1489.54,0.00023,2]
[365524827,1749747043411,-1000.0,0.00023,23]
[365524828,1749747043421,-187.0,0.00023008,2]
[365524829,1749747043430,-460.0,0.00023012,4]
[365524830,1749747043442,-460.0,0.00023012,4]
[365524831,1749747043452,-543.89,0.00023012,4]
[365524832,1749747043461,-460.0,0.00023012,4]
[365524833,1749747043470,-460.0,0.00023013,2]
[365524834,1749747043480,-365.1378539,0.00023014,2]
[365524835,1749747043490,-365.1378539,0.00023014,2]
[365524836,1749747043500,-460.0,0.00023089,4]
[365524837,1749747043509,-460.0,0.00023089,4]
[365524838,1749747043519,-460.0,0.00023089,4]
[365524839,1749747043529,-460.0,0.00023089,4]
[365524840,1749747043543,-460.0,0.00023098,4]
[365524841,1749747043553,-460.0,0.00023098,4]
[365524842,1749747043563,-460.0,0.00023098,4]
[365524843,1749747043572,-764.62858804,0.00023107,8]
[365524844,1749747043582,-187.0,0.00023136,2]
[365524845,1749747043592,-443.72833664,0.00023151,2]
[365524846,1749747043601,-764.62858804,0.00023245,8]
[365524847,1749747043611,-963.0,0.0002325,2]
[365524848,1749747043620,-653.0,0.0002325,2]
[365524849,1749747043629,-2160.0,0.0002325,2]
[365524850,1749747043639,-460.0,0.00023286,4]
[365524851,1749747043649,-460.0,0.00023286,4]
[365524852,1749747043658,-543.89,0.00023286,4]
[365524853,1749747043667,-460.0,0.00023286,4]
[365524854,1749747043676,-460.0,0.00023287,2]
[365524855,1749747043687,-306.0000001,0.00023288,2]
[365524856,1749747043698,-158.4438925,0.00023288,2]
[365524857,1749747043707,-718.09,0.00023306,10]
[365524858,1749747043716,-598.41,0.00023306,10]
[365524859,1749747043726,-498.68,0.00023306,10]
[365524860,1749747043735,-5000.0,0.00023316,2]
[365524861,1749747043744,-1500.0,0.00023341,2]
[365524862,1749747043754,-460.0,0.00023363,4]
[365524863,1749747043763,-460.0,0.00023363,4]
[365524864,1749747043773,-460.0,0.00023363,4]
[365524865,1749747043783,-460.0,0.00023363,4]
[365524866,1749747043792,-460.0,0.00023372,4]
[365524867,1749747043802,-460.0,0.00023372,4]
[365524868,1749747043811,-460.0,0.00023372,4]
[365524869,1749747043821,-764.62858804,0.00023383,9]
[365524870,1749747043831,-2338.29,0.00023443,2]
[365524871,1749747043842,-998.0,0.000235,2]
[365524872,1749747043852,-443.72833664,0.00023501,2]
[365524873,1749747043862,-536.17,0.00023511,3]
[365524874,1749747043872,-1773.160306,0.0002352,3]
[365524875,1749747043882,-764.62858804,0.00023521,9]
[365524876,1749747043892,-460.0,0.0002356,4]
[365524877,1749747043902,-460.0,0.0002356,4]
[365524878,1749747043911,-543.89,0.0002356,4]
[365524879,1749747043921,-460.0,0.0002356,4]
[365524880,1749747043931,-460.0,0.00023561,2]
[365524881,1749747043945,-227.0,0.0002361,2]
[365524882,1749747043955,-460.0,0.00023637,4]
[365524883,1749747043965,-460.0,0.00023637,4]
[365524884,1749747043974,-460.0,0.00023637,4]
[365524885,1749747043984,-460.0,0.00023637,4]
[365524886,1749747043993,-460.0,0.00023646,4]
[365524887,1749747044003,-460.0,0.00023646,4]
[365524888,1749747044013,-460.0,0.00023646,4]
[365524889,1749747044023,-764.62858804,0.00023659,9]
[365524890,1749747044033,-800.0,0.00023664,2]
[365524891,1749747044042,-151.0,0.00023669,7]
[365524892,1749747044052,-200.0,0.00023722,2]
[365524893,1749747044061,-443.72833664,0.00023736,2]
[365524894,1749747044071,-206.0,0.0002374,2]
[365524895,1749747044080,-206.0,0.0002374,2]
[365524896,1749747044090,-800.0,0.00023751,2]
[365524897,1749747044100,-5188.43487911,0.0002376,2]
[365524898,1749747044109,-764.62858804,0.00023797,9]
[365524899,1749747044118,-200.0,0.00023831,2]
[365524900,1749747044127,-200.0,0.00023833,2]
[365524901,1749747044138,-460.0,0.00023834,4]
[365524902,1749747044147,-460.0,0.00023834,4]
[365524903,1749747044156,-543.89,0.00023834,4]
[365524904,1749747044168,-365.90014627,0.00023834,4]
[365524905,1749747044177,-460.0,0.00023835,2]
[365524906,1749747044188,-151.0,0.00023835,7]
[365524907,1749747044198,-180.676574,0.00023836,2]
[365524908,1749747044208,-153.0,0.00023836,2]
[365524909,1749747044217,-153.0,0.00023836,2]
[365524910,1749747044227,-5000.0,0.00023864,2]
[365524911,1749747044236,-800.0,0.00023872,2]
[365524912,1749747044246,-2200.0,0.00023882,2]
[365524913,1749747044255,-2000.0,0.00023889,2]
[365524914,1749747044265,-800.0,0.00023896,2]
[365524915,1749747044274,-510.21521894,0.000239,2]
[365524916,1749747044284,-979.0,0.000239,2]
[365524917,1749747044293,-7502.99405623,0.000239,2]
[365524918,1749747044302,-17378.40415991,0.000239,2]
[365524919,1749747044312,-460.0,0.00023911,4]
[365524920,1749747044322,-460.0,0.00023911,4]
[365524921,1749747044331,-460.0,0.00023911,4]
[365524922,1749747044341,-460.0,0.00023911,4]